Cogmind - Beta 15 *** ADVENTURER MODE // 2025.05.12 @ 22:04:12 Player: Jack Result: Destroyed by G-47 Trooper with Particle Gun Performance ------------- Evolutions (2) 1000 Regions Visited (8) 1600 Robots Destroyed (42) 210 Value Destroyed (1615) 1615 Prototype IDs (23) 460 Alien Tech Used (0) 0 Bonus (942) 942 TOTAL SCORE: 5827 Bonus ------- Pacifist 200 High Alert Combat Kills 242 Entered Garrisons 200 Aligned with FarCom 300 Cogmind --------- Core Integrity 0/550 Matter 99/300 Energy 100/100 System Corruption 1% Temperature Cool (9) Movement Core (50) Location -8/Garrison Parts ------- > --- POWER (1) -------- (None) > --- PROPULSION (4) --- (None) > --- UTILITY (4) ------ (None) > --- WEAPON (2) ------- Scythe > --- INVENTORY (5) ---- Relay Coupler [NC] (27) Relay Coupler [Specialist] (27) Scythe Peak State ------------ > --- POWER ------------ Light Deuterium Engine > --- PROPULSION ------- Titanium Leg Titanium Leg Titanium Leg Titanium Leg > --- UTILITY ---------- (None) > --- WEAPON ----------- AWS/Gauss > --- INVENTORY -------- Beam Rifle Heavy Assault Rifle Grenade Launcher Flail Heavy Mace [Rating: 32] Favorites ----------- Power Light Deuterium Engine Engine Light Deuterium Engine Power Core Light Nuclear Core Propulsion Titanium Leg Treads Light Treads Leg Titanium Leg Utility None Weapon Beam Rifle Energy Gun Beam Rifle Ballistic Gun AWS/Gauss Launcher Grenade Launcher Impact Weapon Heavy Mace Slashing Weapon Scythe Build | -11 -10 -10 -9 -9 -9 -8 -8 -8 ------- Run | Yrd Mat Min Mat Min Exi Min Mat Gar Slots Evolved 4 | . . . 2 . . . 2 . Power . | . . . . . . . . . Propulsion 2 | . . . 1 . . . 1 . Utility 2 | . . . 1 . . . 1 . Weapon . | . . . . . . . . . Parts Attached 20 | . . . . . . 1 7 12 Power 4 | . . . . . . . 2 2 Engine 3 | . . . . . . . 2 1 Core 1 | . . . . . . . . 1 Reactor . | . . . . . . . . . Propulsion 9 | . . . . . . . 4 5 Treads 5 | . . . . . . . . 5 Leg 4 | . . . . . . . 4 . Wheel . | . . . . . . . . . Hover . | . . . . . . . . . Flight . | . . . . . . . . . Utility . | . . . . . . . . . Device . | . . . . . . . . . Storage . | . . . . . . . . . Processor . | . . . . . . . . . Hackware . | . . . . . . . . . Protection . | . . . . . . . . . Artifact . | . . . . . . . . . Weapon 7 | . . . . . . 1 1 5 Energy Gun 1 | . . . . . . . . 1 Energy Cannon . | . . . . . . . . . Ballistic Gun 2 | . . . . . . . 1 1 Ballistic Cannon . | . . . . . . . . . Launcher 2 | . . . . . . 1 . 1 Special Weapon . | . . . . . . . . . Impact Weapon 1 | . . . . . . . . 1 Slashing Weapon 1 | . . . . . . . . 1 Piercing Weapon . | . . . . . . . . . Special Melee Weapon . | . . . . . . . . . Unidentified Prototypes . | . . . . . . . . . Parts Lost 8 | . . . . . . . . 8 Power 1 | . . . . . . . . 1 Propulsion 5 | . . . . . . . . 5 Utility . | . . . . . . . . . Weapon 2 | . . . . . . . . 2 Highest Loss Streak 7 | . . . . . . . . 7 To Critical Strikes . | . . . . . . . . . Average Backups 3 | . . . . 1 2 2 4 4 Power . | . . . . . . . . . Propulsion . | . . . . . . . . . Utility . | . . . . . . . . . Weapon 2 | . . . . 1 2 2 3 3 Tool/Special . | . . . . . . . . . Unused Backups 6 | . . . . . . . 1 5 Power . | . . . . . . . . . Propulsion . | . . . . . . . . . Utility 2 | . . . . . . . . 2 Weapon 3 | . . . . . . . . 3 Tool/Special 1 | . . . . . . . 1 . Average Slot Usage (%) 38 | . . . . . . 3 47 54 Engine 4 | . . . . . . . 5 5 Core 1 | . . . . . . . . 2 Treads 11 | . . . . . . . . 18 Leg 12 | . . . . . . . 33 14 Energy Gun 2 | . . . . . . . . 4 Ballistic Gun 3 | . . . . . . . 8 4 Launcher 1 | . . . . . . 3 . 2 Peak Build Rating 32 | . . . . . 1 2 32 32 Average Rating 13 | . . . . . . 1 28 16 On Entrance 3 | . . . . . . 1 1 32 Naked Turns 745 | . 64 132 58 321 109 25 13 23 Heaviest Build 17 | . . . . . . 3 17 15 Greatest Support 80 | 3 3 3 3 3 3 3 68 80 Greatest Overweight (x) 3 | . . . . . . . 3 . Average Overweight (x) . | . . . . . . . . . Largest Inventory Capacity 5 | 5 5 5 5 5 5 5 5 5 Average Capacity 5 | 5 5 5 5 5 5 5 5 5 Most Carried 5 | . . . . 2 4 4 5 5 Average Carried 3 | . . . . 1 2 3 4 4 Final Capacity 5 | 5 5 5 5 5 5 5 5 5 Final Carried 5 | . . . . 2 4 4 5 3 Class Distribution -------------------- 65% | Mutant 34% | Scavenger-Mutant Dominant Class ---------------- Mutant | -10/Materials Mutant | -10/Mines Mutant | -9/Materials Mutant | -9/Mines Mutant | -9/Exiles Mutant | -8/Mines Mutant | -8/Materials Scavenger-Mutant | -8/Garrison Resources | -11 -10 -10 -9 -9 -9 -8 -8 -8 ----------- Run | Yrd Mat Min Mat Min Exi Min Mat Gar Matter Collected 538 | 63 . 46 . 34 . . 170 225 Remotely . | . . . . . . . . . Salvage Created 1400 | . . . . . . 22 392 986 Parts 101 | . . . . . . 1 28 72 Haulers Intercepted . | . . . . . . . . . Recyclers Shooed . | . . . . . . . . . Parts Field Recycled . | . . . . . . . . . Retrieved Matter . | . . . . . . . . . Parts Self-Destructed . | . . . . . . . . . Prevented . | . . . . . . . . . Kills | -11 -10 -10 -9 -9 -9 -8 -8 -8 ------- Run | Yrd Mat Min Mat Min Exi Min Mat Gar Combat Hostiles Destroyed 38 | . . . . . . . 10 28 Melee 1 | . . . . . . . . 1 Guns 28 | . . . . . . . 8 20 AOE 9 | . . . . . . . 2 7 Classes Destroyed 8 | . . . . . . 1 4 3 Worker 2 | . . . . . . 1 1 . Recycler 1 | . . . . . . . 1 . Watcher 1 | . . . . . . . 1 . Swarmer 10 | . . . . . . . 6 4 Cutter 3 | . . . . . . . . 3 Grunt 9 | . . . . . . . . 9 Sentry 15 | . . . . . . . 4 11 Programmer 1 | . . . . . . . . 1 Best Kill Streak 10 | . . . . . . 1 10 5 Combat Bots Only 5 | . . . . . . . 5 5 Max Kills in Single Turn 3 | . . . . . . 1 3 2 Gunslinging . | . . . . . . . . . Exploded 2 | . . . . . . . 2 2 Melee 1 | . . . . . . . . 1 Uniques/NPCs Destroyed . | . . . . . . . . . Combat | -11 -10 -10 -9 -9 -9 -8 -8 -8 -------- Run | Yrd Mat Min Mat Min Exi Min Mat Gar Hostile Shots Fired 246 | . 2 18 23 . . . 22 181 Missed 82 | . 2 13 7 . . . 12 48 Hits 164 | . . 5 16 . . . 10 133 Melee 5 | . . . . . . . . 5 Projectile 159 | . . 5 16 . . . 10 128 Critical Strikes 11 | . . . . . . . . 11 Damage Taken 2028 | . 4 40 144 27 . . 164 1649 Core 772 | . 4 40 144 27 . . 15 542 Absorbed by Shields . | . . . . . . . . . Ignored by Resistances 573 | . . 10 44 . . . 45 474 Core Remaining (%) 79 | 100 . 82 . . . 57 . . Volleys Fired 52 | . . . . . . 9 . 43 Largest 2 | . . . . . . 1 . 2 Hottest 79 | . . . . . . 30 . 79 Shots Fired 141 | . . . . . . 9 35 97 Gun 113 | . . . . . . . 35 78 Cannon . | . . . . . . . . . Launcher 28 | . . . . . . 9 . 19 Special . | . . . . . . . . . Kinetic 88 | . . . . . . . 35 53 Thermal 25 | . . . . . . . . 25 Explosive 28 | . . . . . . 9 . 19 Electromagnetic . | . . . . . . . . . Robot Hit Streak 18 | . . . . . . . 15 18 Robot Miss Streak 2 | . . . . . . . 2 2 Penetration Max 1 | . . . . . . . . 1 Secondary Targets 1 | . . . . . . . . 1 Max Gunslinging Chain 1 | . . . . . . . . 1 Autonomous 65 | . . . . . . . 35 30 Shots Hit Robots 109 | . . . . . . . 30 79 Core Hits 69 | . . . . 1 . 2 12 54 Critical Kills . | . . . . . . . . . Critical Parts Destroyed 2 | . . . . . . . 1 1 Critical Strikes 5 | . . . . . . . 1 4 Burn 3 | . . . . . . . . 3 Destroy 1 | . . . . . . . 1 . Smash 1 | . . . . . . . . 1 Melee Attacks 24 | . . . . . . . . 24 Impact 1 | . . . . . . . . 1 Slashing 23 | . . . . . . . . 23 Piercing . | . . . . . . . . . Sneak Attacks . | . . . . . . . . . Combat Hostiles . | . . . . . . . . . Follow-up Attacks . | . . . . . . . . . Damage Inflicted 3768 | . 9 28 . 41 . 17 1193 2480 Guns 2258 | . . . . . . . 892 1366 Cannons 12 | . . . . . . . . 12 Explosions 1210 | . . . . . . 17 301 892 Melee 210 | . . . . . . . . 210 Ramming 78 | . 9 28 . 41 . . . . Kinetic 1931 | . . . . . . . 892 1039 Thermal 349 | . . . . . . . 22 327 Explosive 1188 | . . . . . . 17 279 892 Electromagnetic . | . . . . . . . . . Impact 34 | . . . . . . . . 34 Slashing 188 | . . . . . . . . 188 Piercing . | . . . . . . . . . Highest Corruption 1 | . . . . . . . . 1 Average Corruption 1 | . . . . . . . . 1 Corruption Purged . | . . . . . . . . . Corruption Blocked . | . . . . . . . . . Effects 9 | . . . . . . . . 9 Message Errors 3 | . . . . . . . . 3 Matter Fused 3 | . . . . . . . . 3 Energy Discharges 1 | . . . . . . . . 1 Data Loss (major) 1 | . . . . . . . . 1 Misfires 1 | . . . . . . . . 1 Overload Shots . | . . . . . . . . . Overflow Damage 94 | . . . . . . . 72 22 Projectiles . | . . . . . . . . . Explosions 72 | . . . . . . . 72 . Melee 22 | . . . . . . . . 22 Knockbacks 1 | . . . . 1 . . . . Impact 1 | . . . . 1 . . . . Kinetic . | . . . . . . . . . Secondary . | . . . . . . . . . Self-Inflicted Damage 151 | . 4 14 . 19 . . 52 62 Shots 5 | . . . . . . . 1 4 Rammed 15 | . 1 3 . 11 . . . . Targets Rammed 15 | . 1 3 . 11 . . . . Kicked . | . . . . . . . . . Crushed . | . . . . . . . . . Highest Temperature 167 | . . . . . . 2 . 167 Average Temperature 39 | . . . . . . 2 . 39 Received Heat Transfer 1185 | . . . 96 . . . 36 1053 Siege Activations . | . . . . . . . . . Martial Activations . | . . . . . . . . . Shielding Activations . | . . . . . . . . . Robots Disrupted . | . . . . . . . . . Combat Hostiles . | . . . . . . . . . Robots Corrupted . | . . . . . . . . . Combat Hostiles . | . . . . . . . . . Parts Fried 2 | . . . . . . . . 2 Impact Corruptions 1 | . . . . . . . . 1 Robots Melted . | . . . . . . . . . Combat Hostiles . | . . . . . . . . . Parts Melted . | . . . . . . . . . Heat Transferred 760 | . . . . . . . 50 710 Parts Sabotaged . | . . . . . . . . . Parts Stolen . | . . . . . . . . . Parts Stripped . | . . . . . . . . . Power Chain Reactions . | . . . . . . . . . Alert | -11 -10 -10 -9 -9 -9 -8 -8 -8 ------- Run | Yrd Mat Min Mat Min Exi Min Mat Gar Maximum Alert Level 3 | . . . . . . . 1 3 Low Security (%) 39 | 100 100 100 100 100 . 100 95 6 Level 1 10 | . . . . . . . 4 16 Level 2 18 | . . . . . . . . 28 Level 3 31 | . . . . . . . . 48 Level 4 . | . . . . . . . . . Level 5 . | . . . . . . . . . High Security . | . . . . . . . . . Max Security . | . . . . . . . . . Peak Influence 1015 | . 7 30 15 4 . 34 273 1015 Initial 152 | . . . 6 4 . . 7 152 Average 425 | . 1 3 4 . . 19 39 656 Influence Increases 1400 | . 7 30 15 . . 44 370 934 Destroy 0b10 Robot/C 760 | . . . . . . . 200 560 Destroy 0b10 Robot/NC 20 | . . . . . . 5 15 . Destroy Leader 82 | . . . . . . . 62 20 Successful Hack 17 | . 7 . . . . 7 3 . Disable Machine 63 | . . . . . . 18 45 . Anti-Garrison Action 250 | . . . . . . . . 250 Destroy Structure 133 | . . . . . . 14 45 74 Lose Combat Pursuer 75 | . . 30 15 . . . . 30 Influence Decreases 414 | . 7 10 20 15 . 20 125 217 Entered New Map 159 | . . . 14 11 . . 17 117 Time Decay 155 | . 7 10 6 4 . 20 108 . Lost Part 80 | . . . . . . . . 80 Lost Ally 20 | . . . . . . . . 20 Squads Dispatched 2 | . . . 1 . . . 1 . Investigation 1 | . . . 1 . . . . . Extermination . | . . . . . . . . . Reinforcement . | . . . . . . . . . Assault . | . . . . . . . . . Garrison 1 | . . . . . . . 1 . Intercept . | . . . . . . . . . Searches Triggered . | . . . . . . . . . Construction Impeded . | . . . . . . . . . Haulers Reinforced . | . . . . . . . . . Active Scanning Responses . | . . . . . . . . . Cargo Convoy Interrupts . | . . . . . . . . . Stealth | -11 -10 -10 -9 -9 -9 -8 -8 -8 --------- Run | Yrd Mat Min Mat Min Exi Min Mat Gar Distress Signals 2 | . . . 1 . . . 1 . Communications Jammed . | . . . . . . . . . Distress Signals . | . . . . . . . . . Times Spotted 61 | . 5 5 11 . . . 11 29 Peak Tracking Total 11 | . 3 3 11 . . . 3 5 Tactical Retreats 3 | . . 1 1 . . . . 1 Traps | -11 -10 -10 -9 -9 -9 -8 -8 -8 ------- Run | Yrd Mat Min Mat Min Exi Min Mat Gar Traps Triggered 8 | . . . . . . . . 8 Indirectly . | . . . . . . . . . Trap Hack Attempts . | . . . . . . . . . Triggered . | . . . . . . . . . Disarmed . | . . . . . . . . . Reprogrammed . | . . . . . . . . . Reused . | . . . . . . . . . Traps Extracted . | . . . . . . . . . Installed . | . . . . . . . . . Triggered . | . . . . . . . . . Machines | -11 -10 -10 -9 -9 -9 -8 -8 -8 ---------- Run | Yrd Mat Min Mat Min Exi Min Mat Gar Machines Disabled 8 | . . . . . . 2 5 1 Max in Single Turn 2 | . . . . . . 2 2 1 Garrison Relay 1 | . . . . . . . . 1 Machines Repaired . | . . . . . . . . . Machines Dismantled . | . . . . . . . . . Machines Sabotaged . | . . . . . . . . . Overloaded Fab Kills . | . . . . . . . . . Hacking | -11 -10 -10 -9 -9 -9 -8 -8 -8 --------- Run | Yrd Mat Min Mat Min Exi Min Mat Gar Machines Accessed 7 | . 1 . 1 . 1 1 1 2 Terminals 5 | . 1 . 1 . . 1 . 2 Fabricators . | . . . . . . . . . Repair Stations . | . . . . . . . . . Recycling Units . | . . . . . . . . . Scanalyzers . | . . . . . . . . . Garrison Access 1 | . . . . . . . 1 . Total Hacks 10 | . 1 . 2 . 1 1 1 4 Successful 6 | . 1 . . . 1 1 1 2 Failed 4 | . . . 2 . . . . 2 Catastrophic 2 | . . . 2 . . . . . Database Lockouts . | . . . . . . . . . Manual 5 | . 1 . 2 . 1 . . 1 Terminals 8 | . 1 . 2 . . 1 . 4 Fabricators . | . . . . . . . . . Repair Stations . | . . . . . . . . . Recycling Units . | . . . . . . . . . Scanalyzers . | . . . . . . . . . Garrison Access 1 | . . . . . . . 1 . Terminal Hacks 4 | . 1 . . . 1 1 . 1 Open Door 1 | . . . . . . . . 1 Level Access Points 1 | . . . . . . 1 . . Branch Access Points 1 | . 1 . . . . . . . Proto ID Catalog 1 | . . . . . 1 . . . Fabricator Hacks . | . . . . . . . . . Repair Station Hacks . | . . . . . . . . . Recycling Unit Hacks . | . . . . . . . . . Scanalyzer . | . . . . . . . . . Garrison Access Hacks 1 | . . . . . . . 1 . Unlock Access 1 | . . . . . . . 1 . Unauthorized Hacks 1 | . . . . . . . . 1 Terminals 1 | . . . . . . . . 1 Sabotage 1 | . . . . . . . . 1 Fabricators . | . . . . . . . . . Repair Stations . | . . . . . . . . . Recycling Units . | . . . . . . . . . Scanalyzers . | . . . . . . . . . Garrison Access . | . . . . . . . . . Data Cores Recovered . | . . . . . . . . . Used . | . . . . . . . . . Hacking Detections 3 | . . . 1 . . . 1 1 Full Trace Events 2 | . . . 1 . . . . 1 Feedback Events . | . . . . . . . . . Feedback Blocked . | . . . . . . . . . Robot Schematics Acquired . | . . . . . . . . . Robots Built . | . . . . . . . . . Authchips . | . . . . . . . . . Time . | . . . . . . . . . Total Robot Build Rating . | . . . . . . . . . Part Schematics Acquired . | . . . . . . . . . Parts Built . | . . . . . . . . . Authchips . | . . . . . . . . . Time . | . . . . . . . . . Total Part Build Rating . | . . . . . . . . . Parts Repaired . | . . . . . . . . . Time . | . . . . . . . . . Parts Recycled . | . . . . . . . . . Recycled Matter . | . . . . . . . . . Retrieved Matter . | . . . . . . . . . Retrieved Components . | . . . . . . . . . Parts Scanalyzed . | . . . . . . . . . Part Schematics Acquired . | . . . . . . . . . Parts Damaged . | . . . . . . . . . Bothacking | -11 -10 -10 -9 -9 -9 -8 -8 -8 ------------ Run | Yrd Mat Min Mat Min Exi Min Mat Gar Used RIF Installer . | . . . . . . . . . Robots Hacked . | . . . . . . . . . Non-combat . | . . . . . . . . . Combat . | . . . . . . . . . Robot Hacks Applied . | . . . . . . . . . Relay Couplers Released 4 | . . . . . . . . 4 Machine Destruction 4 | . . . . . . . . 4 Fabnet Peak Effective % . | . . . . . . . . . Robots Rewired . | . . . . . . . . . Allies Hacked . | . . . . . . . . . Hacks Repelled . | . . . . . . . . . Allies | -11 -10 -10 -9 -9 -9 -8 -8 -8 -------- Run | Yrd Mat Min Mat Min Exi Min Mat Gar Total Allies 5 | . . 3 . 1 . . . 1 Largest Group 3 | . . 3 . 1 . . . 1 Highest-Rated Group 40 | . . 40 . 31 . . . 20 Highest-Rated Ally 31 | . . 16 . 31 . . . 20 Total Orders . | . . . . . . . . . Ally Attacks . | . . . . . . . . . Total Damage . | . . . . . . . . . Kills . | . . . . . . . . . Allies Corrupted . | . . . . . . . . . Allies Melted . | . . . . . . . . . Intel | -11 -10 -10 -9 -9 -9 -8 -8 -8 ------- Run | Yrd Mat Min Mat Min Exi Min Mat Gar Active Infowar (turns) . | . . . . . . . . . Robot Analysis Total . | . . . . . . . . . Derelict Logs Recovered 2 | . . 1 . 1 . . . . Drone Launches . | . . . . . . . . . Drone Recoveries . | . . . . . . . . . Exploration | -11 -10 -10 -9 -9 -9 -8 -8 -8 ------------- Run | Yrd Mat Min Mat Min Exi Min Mat Gar Turns Passed 2783 | 12 64 132 58 321 109 46 330 1711 Spaces Moved 2551 | 23 125 258 116 519 216 52 221 1021 Core 1406 | 23 125 258 116 519 216 52 70 27 Treads 520 | . . . . . . . . 520 Legs 625 | . . . . . . . 151 474 Wheels . | . . . . . . . . . Hover . | . . . . . . . . . Flight . | . . . . . . . . . Fastest Speed 50 | 50 50 50 50 50 50 50 50 50 Average Speed 94 | 50 50 50 50 50 50 50 137 143 Slowest Speed 200 | 50 50 50 50 50 50 50 200 160 Overloaded Moves . | . . . . . . . . . Propulsion Burnouts . | . . . . . . . . . Robots Hopped . | . . . . . . . . . Potential Cave-ins 11 | . . . . . . 7 . 4 Cave-ins Triggered . | . . . . . . . . . Exploration Rate (%) 44 | 3 32 72 21 98 61 12 28 73 Regions Visited 8 Branch Regions 4 Pre-discovered Areas . | . . . . . . . . . Known Exits Taken 4 | . 1 . 1 . . 1 1 . Unknown Exits Taken 4 | 1 . 1 . 1 1 . . . Scrap Searched 4 | . . 1 . 2 . 1 . . Spaces Dug 6 | . . . . . . . . 6 Terrain Destroyed 195 | . . . . . . 71 53 71 Melee 6 | . . . . . . . . 6 Projectile 21 | . . . . . . . 16 5 AOE 168 | . . . . . . 71 37 60 Terrain Rammed . | . . . . . . . . . Walls Destroyed . | . . . . . . . . . Machines Disabled . | . . . . . . . . . Actions | -11 -10 -10 -9 -9 -9 -8 -8 -8 --------- Run | Yrd Mat Min Mat Min Exi Min Mat Gar Total 2792 | 22 125 260 115 579 216 62 245 1168 Wait 102 | . . . . 48 . . 11 43 Move 2544 | 22 124 257 115 518 215 51 221 1021 Hop . | . . . . . . . . . Pick Up 14 | . . . . 2 1 . 4 7 Fast Attach 11 | . . . . . . . 6 5 Attach 9 | . . . . . . 1 1 7 Detach 2 | . . . . . . 1 . 1 Swap 7 | . . . . . . . . 7 Drop 12 | . . . . . . . 2 10 Fire 52 | . . . . . . 9 . 43 Melee 24 | . . . . . . . . 24 Ram 15 | . 1 3 . 11 . . . . Kick . | . . . . . . . . . Crush . | . . . . . . . . . Escape Stasis . | . . . . . . . . . Rewire . | . . . . . . . . . Trap . | . . . . . . . . . Miscellaneous . | . . . . . . . . . Route ------- -11/Scrapyard -10/Materials -10/Mines -9/Materials -9/Mines (discovered 3 exits: *Mat x2 / *Exi) -9/Exiles -8/Mines (discovered 2 exits: *Mat x2) -8/Materials (discovered 2 exits: Fac / Gar) -8/Garrison (discovered 3 exits: [*Mat x3]) History --------- Turn | Location | Event 6 | -11/Scrapyard | Discovered new exit (range 14) 13 | -11/Scrapyard | Entered Materials 60 | -10/Materials | Identified exit to Mines 77 | -10/Materials | Entered Mines 114 | -10/Mines | Assisted by bots powering up and referring to "LRC-V3" 178 | -10/Mines | Met a Derelict bent on vengeance 194 | -10/Mines | Learned location of 1 exit from Materials 202 | -10/Mines | Discovered new exit (range 15) 209 | -10/Mines | Entered Materials 209 | -9/Materials | Evolved 2 slots: Propulsion x1, Utility x1 210 | -9/Materials | Identified exit to Mines 267 | -9/Materials | Entered Mines 273 | -9/Mines | Received a Mining Laser from a helpful Derelict 284 | -9/Mines | Discovered new exit (range 14) 301 | -9/Mines | YI-UF0 nonchalantly dropped a Grenade Launcher on the ground 305 | -9/Mines | Build established: Mutant 359 | -9/Mines | Learned location of 1 exit from Materials 375 | -9/Mines | Discovered new exit (range 7) 415 | -9/Mines | Found a hidden stash of uninstalled traps 546 | -9/Mines | Deemed a non-threat by the Exiles lab entrance 546 | -9/Mines | Discovered new exit (range 5) 588 | -9/Mines | Entered Exiles 600 | -9/Exiles | Met 8R-AWN 610 | -9/Exiles | Met EX-HEX 623 | -9/Exiles | Met EX-BIN 631 | -9/Exiles | Aligned with FarCom system 632 | -9/Exiles | Given EX-Vault access code 644 | -9/Exiles | Opened EX-Vault 647 | -9/Exiles | Found AWS/Gauss 659 | -9/Exiles | Warned to stay clear of 0b10 Research branches 673 | -9/Exiles | Met EX-DEC 691 | -9/Exiles | Discovered new exit (range 11) 697 | -9/Exiles | Left Exiles lab with AWS/Gauss 697 | -9/Exiles | Entered Mines 707 | -8/Mines | Identified exit to Materials 743 | -8/Mines | Entered Materials 743 | -8/Materials | Evolved 2 slots: Propulsion x1, Utility x1 744 | -8/Materials | Identified exit to Factory 1049 | -8/Materials | Garrison activated, responded to threat 1073 | -8/Materials | Identified exit to Garrison 1073 | -8/Materials | Entered Garrison 1121 | -8/Garrison | Triggered checkpoint 1275 | -8/Garrison | Triggered checkpoint 1330 | -8/Garrison | Discovered new exit (range 13) 1395 | -8/Garrison | Triggered checkpoint 1457 | -8/Garrison | Triggered checkpoint 1466 | -8/Garrison | AWS/Gauss suddenly broke down 1470 | -8/Garrison | Triggered checkpoint 1584 | -8/Garrison | Discovered new exit (range 11) 1647 | -8/Garrison | Triggered checkpoint 1890 | -8/Garrison | Discovered new exit (range 11) 1922 | -8/Garrison | Triggered checkpoint 1997 | -8/Garrison | Triggered checkpoint 2051 | -8/Garrison | Build established: Scavenger-Mutant 2720 | -8/Garrison | Core integrity fell below 50% 2729 | -8/Garrison | Rescued a captive Derelict 2749 | -8/Garrison | Lost 7 parts (5n2w) 2755 | -8/Garrison | Core integrity fell below 20% 2784 | -8/Garrison | Destroyed by G-47 Trooper with Particle Gun Last Messages --------------- Switching to secondary target: G-47 Trooper. Beam Rifle destroyed. Critical hit (Burn: +37). Acquired 49 matter. Critical hit (Burn: +37). Hvy. Assault Rifle destroyed. Critical hit (Burn: +37). Lgt. Treads destroyed. Critical hit (Burn: +37). Lgt. Treads destroyed. Dropped Imp. Ion Engine. Critical hit (Burn: +37). Connecting with Door Terminal... >>Open(Door) Sealed Heavy Doors opened. ALERT: Suspicious activity at Terminal G001. Transmitting hostile system tracking data. PR-B5W(b): "I knew we'd be rescued!" The unstable cave ceiling collapses. G-47 Trooper crushed by falling debris. Map ----- +----------------------------------------------------+ | # = #??????? | | # [= ] #??????? | | # ############### ##[ # # ###### ##??????? | | # #?????????????# # ! # #?# #= ###?????? | | # #?????????????# # #####?#### [# #?????? | | # #?????????????##### # #?????# #?????? | | # #??????????????## # # #?????# #?????? | | # #???????????????## * ###?????# #?????? | | # #????????????????## #???????### # #?????? | | # #???????????????### ##????????# ###?????? | | # #???????????????# #??????#### ##??????? | | # #???????????????# < #??????# #??????? | | # #???????????????# #??????# ### ##??????? | | # #???????????????### #??????####?# #?####??? | | # #?????????????????# #???????????# ### #??? | | # #?????????????????# #???????????# #??? | | # #?????????????????# #???????????##### #??? | | # #?????????????????# #???????????????# ##??? | | # #?????????????????# #??????????????## #???? | | # #?????????????????# #??????????????#" #???? | | # #?????????????????# #??????????????#T #???? | | ###################### #??????????????#""#???? | | # #??????????????####???? | | # #?????????????????????? | | # ########################???????????????????? | | # #???????????????????##@#???????????????????? | | # #???????????????????#g##???????????????????? | | # #???????????????????##g#???????????????????? | | # #???????????????????#g##???????????????????? | | # #???????????????????## #???????????????????? | | # #???????#####???????#g##???????????????????? | | # ##??????# #???????## #???????????????????? | | ########* ######### ##??????????????????? | | ! = %/ T#??????????????????? | | ^ #### ##??????????????????? | | # ############# ##??# #???????????????????? | | # ###????????#"""""#??###???????????????????? | | #????????#######????????????????????????? | | #???????????????????????????????????????? | | #???????????????????????????????????????? | | #????????????????#########??????????????? | | # ###????????????????""""""""""?????????????? | | # ###################"!!!!!!"""#????????????? | | + ""#????????????? | | + !"#????????????? | | ########## ####### !"#????????????? | | ## ##????????# #?????? !"#????????????? | | ?# #?????????# #??????? !"#????????????? | | ?# #?????????# #??????? ""#????????????? | | ## #?????????# #????????!!!!!"""?????????????? | +----------------------------------------------------+ Best States ------------- Heat Dissipation 31 Energy Generation 14 Energy Capacity 265 Matter Stores 300 Matter Capacity 300 Sight Range 16 Terrain Scan Density 10 Resistance: KI 20 Resistance: TH 20 Resistance: EX 20 Resistance: EM 20 Resistance: I 20 Resistance: S 20 Resistance: P 20 Evasion (%) 55 Recoil Reduction 4 Offensive Hacking 10 Item Schematics ----------------- None Robot Schematics ------------------ None Fabricated ------------ Nothing Repaired ---------- Nothing Alien Tech Used ----------------- None Achievements -------------- None Challenges ------------ None Game ------ Seed PlasmaPhysicsBiocell Manual? 0 Play Time 00:23:10 Cumulative 124.3 hours Start 2025.05.12 @ 21:44:53 End 2025.05.12 @ 22:04:12 Sessions 3 Manual Loads 0 Difficulty Adventurer Special Mode None Game No. 141 Rogue 18 Adventurer 112 Explorer 11 Win Type - Total 27 Types 8/0/11/0/3/0/4/1/0/0 Lore% 38 Gallery% 41 Achievement% 63 Wizard Run 0 Options --------- Layout 0 ASCII 0 Keyboard 0 Movement Numpad Keybinds 0 Fullscreen 2 Font 12/Smallcaps Map View 83x54 Zoom Use 0% Tactical HUD 0 Map Filters NONE Filters NONE Steam 1 RUN: d34a4ae8-7d2b-45d0-82ca-c613e3823b57